bitfinex/quotes_ETHUSD_20240731
["timestamp","ask_amount","ask_price","bid_price","bid_amount"]
[1722461780925,3.09694,3229.0,3228.2,3.15955547]
[1722461781226,1.28759408,3229.4,3228.9,3.09697]
[1722461781227,0.64379704,3229.3,3228.9,3.09697]
[1722461781434,0.64379704,3229.7,3229.1,3.09682]
[1722461781592,0.16094926,3229.7,3229.1,3.09675]
[1722461781992,0.16094926,3229.7,3229.2,3.09672]
[1722461782393,3.74009449,3230.0,3229.3,0.06192993]
[1722461782624,3.74009449,3230.0,3229.4,3.09655]
[1722461782625,3.09602,3230.0,3229.4,3.09655]
[1722461783131,0.64407449,3230.3,3229.6,3.09627]
[1722461783337,3.09561,3230.4,3229.6,3.09627]
[1722461783520,1.57577569,3230.3,3229.8,3.09616]
[1722461783693,2.10732171,3230.3,3229.9,3.09607]
[1722461784034,2.10732171,3230.3,3229.8,3.09616]
[1722461784035,3.73952909,3230.6,3230.0,3.09589]
[1722461784332,3.09544,3230.6,3230.0,3.09589]
[1722461785031,23.46933909,3230.8,3230.2,3.09576]
[1722461785032,3.09532,3230.7,3230.2,3.09576]
[1722461785238,6.09532,3230.7,3230.2,3.09576]
[1722461785736,6.09532,3230.7,3230.1,3.09582]
[1722461786037,3.09574,3230.3,3229.6,3.09626]
[1722461786209,5.582532,3230.7,3228.6,1.5]
[1722461786210,3.09626,3229.7,3228.6,3.09727]
[1722461786407,3.09645,3229.5,3228.9,3.09695]
[1722461786621,3.09636,3229.6,3229.0,3.09687]
[1722461786846,3.09636,3229.6,3228.7,3.09714]
[1722461786847,3.09661,3229.4,3228.7,3.09714]
[1722461787065,3.09661,3229.4,3228.7,3.09717]
[1722461787330,3.09649,3229.5,3228.5,3.09737]
[1722461787537,3.09649,3229.5,3228.7,3.0972]
[1722461787538,3.09665,3229.3,3228.7,3.0972]
[1722461787746,3.09685,3229.1,3228.5,3.09737]
[1722461787910,0.619314,3229.3,3228.2,2.3448]
[1722461788108,0.619314,3229.3,3227.6,2.49985911]
[1722461788109,3.09668,3229.3,3227.6,2.49985911]
[1722461788335,3.09767,3228.3,3227.5,3.0983]
[1722461788540,3.09779,3228.1,3227.5,3.0983]
[1722461788942,3.09781,3228.1,3227.2,3.09864]
[1722461789172,3.09804,3227.9,3227.2,3.09864]
[1722461789606,3.09804,3227.9,3227.1,3.09872]
[1722461789607,3.09821,3227.7,3227.1,3.09872]
[1722461789807,3.09828,3227.6,3226.9,6.19786]
[1722461790002,3.09828,3227.6,3227.0,3.09885]
[1722461790533,3.09828,3227.6,3226.9,3.09893]
[1722461790534,3.09828,3227.6,3227.1,3.09875]
[1722461790740,3.09838,3227.5,3226.9,3.09888]
[1722461791320,3.09812,3227.8,3226.9,3.09888]
[1722461791644,3.09829,3227.6,3227.0,3.09883]
[1722461792051,3.09821,3227.7,3227.1,3.09875]
[1722461792717,0.9649934,3228.4,3227.1,3.09875]
[1722461792718,3.09779,3228.1,3227.5,3.09836]
[1722461793535,3.64332893,3228.5,3227.5,0.06195816]
[1722461793723,0.9649934,3228.6,3227.9,3.09798]
[1722461793724,3.09739,3228.6,3227.9,3.09798]
[1722461793925,3.0,3228.5,3227.9,3.09798]
[1722461794229,1.28665787,3229.0,3227.6,3.09824]
[1722461794230,0.64332893,3228.9,3228.2,3.09767]
[1722461794430,0.64332893,3228.9,3228.0,0.06195412]
[1722461794431,3.74030893,3229.0,3228.3,3.09755]
[1722461794626,3.09699,3229.0,3228.3,3.09755]
[1722461795013,3.09689,3229.1,3228.3,3.09755]
[1722461795218,3.09689,3229.1,3227.8,1.5]
[1722461795219,3.09667,3229.3,3228.6,3.09722]
[1722461795556,3.78031889,3229.3,3228.6,3.09722]
[1722461795742,3.09667,3229.3,3228.7,3.09721]
[1722461795921,0.64332893,3229.6,3228.8,0.06193607]
[1722461796121,1.60856366,3230.0,3229.2,3.09672]
[1722461796122,3.73930893,3230.0,3229.2,3.09672]
[1722461796347,3.73930893,3230.0,3228.7,3.09718]
[1722461796348,3.09607,3229.9,3229.3,3.09658]
[1722461796522,3.09641,3229.6,3228.8,3.09703]
[1722461796859,3.0967,3229.3,3228.7,3.09721]
[1722461797189,0.64332893,3229.8,3228.9,3.09694]
[1722461797190,3.09636,3229.6,3228.9,3.09694]
[1722461797355,3.09651,3229.5,3228.9,3.09694]
[1722461797547,0.64332893,3230.0,3228.9,3.09694]
[1722461797548,3.09629,3229.7,3229.0,3.09692]
[1722461797716,3.09629,3229.7,3228.7,3.09718]
[1722461797717,3.09646,3229.5,3228.7,3.09718]
[1722461797921,3.09629,3229.7,3228.9,3.09697]
[1722461798116,3.09618,3229.8,3228.5,3.09737]
[1722461798333,3.09618,3229.8,3228.4,1.5]
[1722461798334,3.09618,3229.8,3229.2,3.09668]
[1722461799025,3.09618,3229.8,3229.3,3.09664]
[1722461799220,3.09608,3229.9,3229.3,3.09664]
[1722461799723,3.09618,3229.8,3229.3,3.09664]
[1722461799955,3.09631,3229.7,3229.1,3.09682]
[1722461801937,3.09636,3229.6,3229.1,3.09682]
[1722461802467,3.09602,3230.0,3228.9,6.19404]
[1722461802651,6.73906528,3230.2,3229.5,3.09645]
[1722461802861,6.73906528,3230.2,3229.0,0.619404]
[1722461802862,3.09585,3230.2,3229.6,3.09635]
[1722461803165,6.19126,3230.4,3229.6,3.09627]
[1722461803349,6.19126,3230.4,3229.6,3.15818885]
[1722461803350,3.0956,3230.4,3229.6,3.15818885]
[1722461803530,3.09569,3230.3,3229.7,3.0962]
[1722461803990,6.19146,3230.3,3229.7,3.0962]
[1722461804154,3.09569,3230.3,3229.7,3.0962]
[1722461805043,3.09569,3230.3,3229.7,6.19238]
[1722461805244,3.09569,3230.3,3229.8,3.09615]
[1722461805437,3.09553,3230.5,3229.8,3.09615]
[1722461805635,3.405083,3230.5,3229.8,3.09615]
[1722461805871,3.0956,3230.4,3229.8,3.09615]
[1722461806073,3.09535,3230.7,3229.9,3.09606]
[1722461806279,0.96470236,3231.0,3229.9,3.09606]
[1722461806280,3.0955,3230.5,3229.9,3.09599]
[1722461806449,3.70505,3230.5,3229.9,3.09599]
[1722461806770,3.09559,3230.4,3229.9,3.09599]
[1722461807674,3.09559,3230.4,3229.7,3.09619]
[1722461808032,3.0,3230.6,3229.8,0.06191406]
[1722461808033,6.09545,3230.6,3229.8,0.06191406]
[1722461808271,3.09554,3230.5,3230.0,3.09596]
[1722461808486,3.09554,3230.5,3230.0,3.15787267]
[1722461808652,3.09532,3230.7,3230.1,3.15776096]
[1722461809477,3.09527,3230.8,3230.1,3.15776096]
[1722461809694,3.0,3230.7,3230.1,3.15776096]
[1722461809885,3.0,3230.7,3230.1,3.15771096]
[1722461810260,6.0953,3230.7,3230.1,6.25352096]
[1722461810461,6.0953,3230.7,3230.1,3.15771096]
[1722461810665,6.0953,3230.7,3230.2,0.06190853]
[1722461810865,6.0953,3230.7,3230.2,3.09577]
[1722461812063,3.0,3230.7,3230.3,0.06190693]
[1722461812266,3.7380049,3231.2,3230.3,0.06190693]
[1722461812267,3.09507,3231.0,3230.4,3.09558]
[1722461812575,3.09507,3231.0,3230.3,0.06190693]
[1722461812576,6.09511,3230.9,3230.3,0.06190693]
[1722461812749,6.09525,3230.8,3230.0,3.09592]
[1722461812944,6.09525,3230.8,3230.2,3.09577]
[1722461813146,3.09531,3230.7,3230.2,3.09577]
[1722461813373,3.09554,3230.5,3229.9,3.09606]
[1722461813572,3.714625,3230.5,3229.8,3.09616]
[1722461813748,3.09588,3230.1,3229.4,3.09651]
[1722461813946,3.09588,3230.1,3229.6,3.0963]
[1722461814146,3.09588,3230.1,3229.4,3.09646]
[1722461814349,3.09588,3230.1,3229.3,3.09656]
[1722461814588,3.09605,3230.0,3229.4,3.09648]
[1722461814773,3.09622,3229.8,3229.2,3.09667]
[1722461814973,3.09622,3229.8,3229.0,3.716254]
[1722461814974,3.09638,3229.6,3229.0,3.716254]
[1722461815177,3.09646,3229.5,3229.0,3.716254]
[1722461815368,3.09646,3229.5,3229.0,3.09685]
[1722461815566,3.09633,3229.7,3229.0,3.09685]
[1722461815767,3.09638,3229.6,3229.0,3.09685]
[1722461816571,6.19281,3229.6,3229.0,3.09685]
[1722461816797,3.73918826,3230.1,3228.4,3.09746]
[1722461816798,3.09671,3229.3,3228.4,3.09746]
[1722461816994,3.09671,3229.3,3228.3,2.2675]
[1722461816995,3.09671,3229.3,3228.7,3.09715]
[1722461817192,3.09671,3229.3,3228.7,6.1943]
[1722461817382,3.09649,3229.5,3228.7,6.1943]
[1722461817383,3.09649,3229.5,3228.7,3.09715]
[1722461817595,3.09662,3229.4,3228.8,3.09711]
[1722461817910,3.09651,3229.5,3228.8,3.09711]
[1722461818209,0.64328826,3229.7,3228.6,3.09724]
[1722461818373,3.09669,3229.3,3228.6,3.09724]
[1722461818572,3.09669,3229.3,3228.8,3.09707]
[1722461819497,3.0965,3229.5,3228.9,3.09702]
[1722461819713,3.0965,3229.5,3228.5,0.536496]
[1722461819714,3.0965,3229.5,3228.7,3.09716]
[1722461820435,3.09665,3229.3,3228.7,3.09716]
[1722461820780,3.09689,3229.1,3228.5,3.633886]
[1722461821001,3.09698,3229.0,3228.4,3.09749]
[1722461821314,3.09703,3228.9,3228.4,3.09749]
[1722461821680,6.19381,3229.1,3228.4,3.09749]
[1722461821887,3.09699,3229.0,3228.4,3.09749]
[1722461824299,3.74027826,3229.0,3228.4,3.09749]
[1722461825684,3.09705,3228.9,3228.4,3.09749]
[1722461828383,3.74033826,3228.9,3228.4,3.09749]
[1722461829593,0.64328826,3228.9,3228.4,3.09742]
[1722461829932,4.06182239,3229.1,3228.4,3.09742]
[1722461829933,0.64328826,3229.0,3228.4,3.09742]
[1722461830310,4.06182239,3229.1,3228.4,3.09742]
[1722461830311,0.64328826,3228.9,3228.4,3.09742]
[1722461830508,3.74033826,3228.9,3228.4,3.09742]
[1722461831502,0.64328826,3228.8,3228.4,3.09742]
[1722461832914,0.64328826,3228.8,3227.9,3.09792]
[1722461832915,3.09737,3228.6,3227.9,3.09792]
[1722461833121,3.09737,3228.6,3228.0,3.09782]
[1722461833122,3.74065826,3228.6,3228.0,3.09782]
[1722461833412,3.74065826,3228.6,3227.8,3.09799]
[1722461833637,3.09751,3228.4,3227.8,3.09799]
[1722461833810,3.74280097,3228.4,3227.8,3.09799]
[1722461834212,6.84039097,3228.4,3227.8,3.09799]
[1722461834561,6.84039097,3228.4,3227.7,3.09817]
[1722461834562,3.0977,3228.2,3227.7,3.09817]
[1722461835706,3.0978,3228.1,3227.5,3.09829]
[1722461835900,3.0978,3228.1,3227.5,3.0983]
[1722461836104,3.0978,3228.1,3227.2,2.467]
[1722461836105,3.0978,3228.1,3227.6,3.09826]
[1722461836337,0.64529097,3228.2,3227.7,3.09816]
[1722461836711,3.74300097,3228.2,3227.7,3.09816]
[1722461836915,6.84077097,3228.2,3227.7,3.09816]
[1722461837143,6.84077097,3228.2,3227.3,3.09856]
[1722461837144,3.09789,3228.0,3227.3,3.09856]
[1722461837330,3.09789,3228.0,3227.2,3.0986]
[1722461837331,3.74343097,3227.8,3227.2,3.0986]
[1722461837530,3.74343097,3227.8,3226.7,5.52091]
[1722461837531,3.09828,3227.6,3227.0,3.09876]
[1722461837844,3.09828,3227.6,3227.0,3.718525]
[1722461838055,3.74357097,3227.6,3227.0,3.718525]
[1722461838378,3.74357097,3227.6,3226.7,2.4218]
[1722461838379,0.64529097,3227.6,3226.7,5.52088]
[1722461838675,0.64529097,3227.6,3226.0,3.4045]
[1722461838676,3.74392097,3227.3,3226.5,3.09927]
[1722461838814,0.64529097,3227.2,3226.7,3.09907]
[1722461839017,0.64529097,3227.2,3226.7,3.718904]
[1722461839217,4.71185742,3227.3,3226.7,3.718904]
[1722461839449,3.74421097,3227.0,3226.3,3.09944]
[1722461839662,3.09895,3226.9,3226.2,5.54184]
[1722461839982,3.09895,3226.9,3226.1,3.09966]
[1722461839983,3.09919,3226.7,3226.1,3.09966]
[1722461840258,3.09861,3227.3,3225.6,0.3104]
[1722461840259,0.64524247,3226.8,3225.8,3.09999]
[1722461840425,0.96786371,3227.0,3226.5,3.09926]
[1722461840426,0.64524247,3227.0,3226.5,3.09926]
[1722461840613,0.96786371,3227.2,3226.8,3.09898]
[1722461840614,0.64524247,3227.2,3226.8,3.09898]
[1722461840807,0.96786371,3227.4,3226.8,3.09898]
[1722461840808,0.64524247,3227.3,3226.8,3.09898]
[1722461841240,3.74372247,3227.4,3226.8,3.09898]
[1722461841608,3.74372247,3227.4,3226.6,3.16120626]
[1722461841609,0.64524247,3227.6,3227.1,3.0987]
[1722461841809,0.64524247,3227.6,3227.2,3.09859]
[1722461842075,3.09819,3227.7,3227.2,3.09859]
[1722461842076,0.64524247,3227.8,3227.4,3.09839]
[1722461842350,1.29048495,3228.1,3227.6,3.09821]
[1722461842351,0.64524247,3228.1,3227.6,3.09821]
[1722461842561,7.06547371,3228.3,3227.6,3.09821]
[1722461842562,0.64524247,3228.2,3227.7,3.09817]
[1722461842911,3.09788,3228.1,3227.4,3.09839]
[1722461843107,3.09794,3228.0,3227.4,3.09839]
[1722461843306,3.09794,3228.0,3227.4,3.16035009]
[1722461843528,3.74243906,3228.2,3227.6,3.09822]
[1722461843721,0.64467906,3228.2,3227.6,3.09822]
[1722461843923,0.64467906,3228.1,3227.6,3.0982]
[1722461844249,4.06463859,3228.3,3227.8,3.09802]
[1722461844250,0.64467906,3228.3,3227.8,3.09802]
[1722461844410,0.64467906,3228.4,3227.8,3.09802]
[1722461844838,0.64467906,3228.5,3227.8,3.09802]
[1722461845352,0.64467906,3228.5,3226.9,2.3573]
[1722461845353,0.64467906,3228.5,3228.0,3.09783]
[1722461845511,0.96701859,3228.7,3228.0,3.09783]
[1722461845512,0.64467906,3228.6,3228.0,3.09783]
[1722461846447,0.64467906,3228.6,3228.2,3.09769]
[1722461846648,0.64467906,3228.5,3228.0,3.09783]
[1722461846852,0.64467906,3228.5,3227.8,3.09805]
[1722461846853,0.64467906,3228.5,3227.5,3.09833]
[1722461847047,0.64467906,3228.7,3228.3,3.09753]
[1722461847417,0.64467906,3228.8,3228.3,3.09753]
[1722461847618,0.64467906,3228.9,3228.6,3.09725]
[1722461848363,0.64467906,3229.0,3228.6,3.09725]
[1722461848534,0.64467906,3228.9,3228.6,3.09725]
[1722461848935,3.64467906,3229.1,3228.6,3.09725]
[1722461849131,0.64467906,3229.0,3228.7,3.0972]
[1722461849453,0.64467906,3229.0,3228.8,3.09712]
[1722461849656,0.96701859,3229.2,3228.7,3.0972]
[1722461849657,0.64467906,3229.1,3228.7,3.0972]
[1722461849825,0.64467906,3229.1,3228.7,3.15907744]
[1722461850024,0.96701859,3229.3,3228.7,3.15907744]
[1722461850025,0.64467906,3229.3,3228.9,3.097]
[1722461850256,0.64467906,3229.2,3229.0,3.09692]
[1722461850426,0.64467906,3229.3,3228.8,3.09704]
[1722461850836,0.64467906,3229.3,3228.9,3.09701]
[1722461851248,0.64467906,3229.3,3229.0,3.15880626]
[1722461851457,0.96701859,3229.4,3229.2,3.09668]
[1722461851458,0.64467906,3229.4,3229.2,3.09668]
[1722461851821,3.09704,3228.9,3228.1,3.09777]
[1722461852022,0.64467906,3228.9,3228.2,3.09762]
[1722461852335,0.64467906,3228.8,3228.3,3.09754]
[1722461852659,0.64488293,3228.8,3228.5,3.09734]
[1722461852848,0.64488293,3228.9,3228.5,3.09733]
[1722461853159,0.64488293,3229.0,3228.5,3.09733]
[1722461853455,0.64488293,3229.0,3228.6,0.06194167]
[1722461853456,0.64488293,3228.9,3228.6,0.06194167]
[1722461853664,0.64488293,3229.0,3228.1,3.09775]
[1722461853868,0.64488293,3228.9,3228.7,3.09721]
[1722461854162,0.64488293,3228.9,3228.6,3.09729]
[1722461854370,0.64488293,3228.9,3228.4,3.09742]
[1722461854733,0.64488293,3228.9,3228.5,3.09741]
[1722461855469,0.64488293,3228.8,3228.5,3.09741]
[1722461855989,0.64488293,3228.9,3228.5,3.09741]
[1722461856191,0.64488293,3228.9,3228.6,3.09729]
[1722461856327,0.64488293,3228.8,3228.6,3.09729]
[1722461856532,0.64488293,3228.8,3228.4,6.19485]
[1722461856726,0.64488293,3228.8,3228.5,3.09734]
[1722461857158,0.64488293,3228.8,3228.6,3.09731]
[1722461857362,0.64519094,3228.7,3228.6,3.09731]
[1722461858942,0.64549464,3228.7,3228.4,3.09747]
[1722461859142,2.22187351,3228.6,3228.4,3.09747]
[1722461859468,0.64566557,3228.5,3228.4,3.09747]
[1722461859968,2.54489813,3228.6,3228.3,3.09759]
[1722461860147,2.22201435,3228.5,3228.3,3.09753]
[1722461860468,0.64561458,3228.4,3228.3,3.09753]
[1722461862169,0.64561458,3228.4,3228.3,3.407283]
[1722461862379,0.64596554,3228.6,3228.5,3.09741]
[1722461862574,2.22225341,3228.6,3228.5,6.19482]
[1722461862878,0.64596554,3228.6,3228.5,3.09741]
[1722461863371,0.64596554,3228.7,3228.6,6.19462]
[1722461863533,0.96849836,3228.8,3228.7,3.09719]
[1722461863737,2.54478036,3228.8,3228.7,6.19441]
[1722461863970,2.54478036,3228.8,3228.7,6.82004506]
[1722461863971,0.64610794,3228.8,3228.7,6.82004506]
[1722461864157,0.64610794,3228.8,3228.7,7.37004506]
[1722461864344,0.96849836,3229.0,3228.9,6.19404]
[1722461864345,0.64610794,3229.0,3228.9,6.19404]
[1722461864550,0.96849836,3229.1,3229.0,6.19386]
[1722461864761,0.96849836,3229.2,3229.1,3.09683]
[1722461864971,1.29133115,3229.4,3229.1,3.09683]
[1722461864972,0.96849836,3229.3,3229.2,3.09674]
[1722461865177,2.54448518,3229.3,3229.2,3.09674]
[1722461865491,2.54448518,3229.3,3229.2,6.19348]
[1722461865492,2.54551151,3229.3,3229.2,6.19348]
[1722461865774,1.29276809,3229.4,3229.3,3.09655]
[1722461865775,0.96958548,3229.4,3229.3,3.09655]
[1722461865971,2.86869951,3229.5,3229.3,3.09655]
[1722461866176,1.29276809,3229.5,3229.4,3.09655]
[1722461866377,1.57600056,3229.5,3229.4,3.09655]
[1722461866585,2.86876865,3229.5,3229.4,3.09655]
[1722461866777,1.57600056,3229.5,3229.4,3.09655]
[1722461866985,2.86876865,3229.5,3229.4,3.09655]
[1722461867212,1.57600056,3229.5,3229.4,3.09655]
[1722461867356,2.86869788,3229.5,3229.4,3.09655]
[1722461867750,1.57600056,3229.5,3229.4,3.09655]
[1722461868062,1.57600056,3229.5,3229.4,6.1931]
[1722461868063,2.54558248,3229.5,3229.4,6.1931]
[1722461868367,2.54547589,3229.5,3229.4,6.1931]
[1722461868570,2.54541259,3229.5,3229.4,6.1931]
[1722461869190,1.29254937,3229.7,3229.2,3.0967]
[1722461869191,1.29259985,3229.7,3229.2,3.0967]
[1722461869485,0.9692936,3229.4,3229.3,3.0966]
[1722461869694,0.9692936,3229.5,3229.3,3.0966]
[1722461870009,0.9692936,3229.5,3229.4,3.09655]
[1722461870148,2.54523929,3229.5,3229.4,3.09655]
[1722461870974,0.9692936,3229.5,3229.4,3.09655]
[1722461871175,2.54521846,3229.5,3229.4,3.09655]
[1722461871578,0.9692936,3229.5,3229.3,3.09664]
[1722461871890,0.64623773,3229.4,3229.3,3.09664]
[1722461872089,0.96935659,3229.5,3229.3,3.09664]
[1722461872338,0.64622598,3229.4,3229.3,3.09664]
[1722461872760,0.96935659,3229.5,3229.4,3.09655]
[1722461872956,1.29247546,3229.6,3229.4,3.09655]
[1722461872957,0.96935659,3229.6,3229.4,3.09655]
[1722461873155,0.96935659,3229.6,3229.5,3.09645]
[1722461873358,2.54524979,3229.6,3229.5,3.09645]
[1722461873636,0.96935659,3229.8,3229.5,0.619298]
[1722461873820,0.64625412,3229.7,3229.6,6.25461992]
[1722461873959,0.64625412,3229.9,3229.8,3.09616]
[1722461874320,0.96935659,3230.1,3229.9,3.09607]
[1722461874621,0.64615635,3230.0,3229.9,3.09607]
[1722461875308,0.64615635,3230.0,3229.8,3.09616]
[1722461875309,0.64615635,3230.1,3230.0,3.09597]
[1722461875490,0.64615635,3230.1,3229.8,6.19227]
[1722461875661,0.64615635,3230.1,3229.8,3.09611]
[1722461876094,0.96935659,3230.2,3230.0,3.09597]
[1722461876095,0.64615635,3230.2,3230.0,3.09597]
[1722461876723,0.64615635,3230.2,3230.1,3.09587]
[1722461876924,0.64579629,3230.2,3230.1,3.09587]
[1722461877125,0.64579629,3230.2,3230.0,3.09591]
[1722461877276,0.64579629,3230.3,3230.1,3.09582]
[1722461877677,0.64579629,3230.3,3230.2,3.09578]
[1722461878012,0.64560954,3230.3,3230.2,3.09578]
[1722461878527,0.64560954,3230.6,3230.4,3.09559]
[1722461879153,0.64560954,3230.6,3230.5,3.09549]
[1722461879452,0.64560954,3230.9,3230.6,3.0954]
[1722461879629,0.64560954,3230.9,3230.7,3.09529]
[1722461880106,0.64560954,3231.0,3230.7,3.09529]
[1722461880309,0.64560954,3231.0,3230.6,3.0954]
[1722461880310,0.64560954,3231.0,3230.6,3.09533]
[1722461881512,0.64560954,3231.0,3229.8,2.3549]
[1722461881513,0.64560954,3231.0,3230.8,3.09515]
[1722461881749,1.29247546,3231.3,3230.8,3.09515]
[1722461881750,0.64560954,3231.1,3230.8,3.09515]
[1722461881916,0.64560954,3231.1,3230.9,3.09511]
[1722461882118,0.64560954,3231.3,3230.9,3.09511]
[1722461882335,0.64560954,3231.3,3230.9,3.09508]
[1722461882641,0.64560954,3231.4,3230.9,3.09508]
[1722461882853,0.64560954,3231.4,3231.0,3.09501]
[1722461883196,0.96935659,3231.6,3231.1,0.06189509]
[1722461883197,0.64560954,3231.5,3231.1,0.06189509]
[1722461883394,0.64560954,3231.5,3231.2,3.09477]
[1722461883645,0.64560954,3231.8,3231.3,3.09466]
[1722461883801,7.15778659,3231.9,3231.3,3.09466]
[1722461883802,3.73981954,3231.9,3231.3,3.09466]
[1722461883996,7.61437815,3231.9,3231.3,3.09466]
[1722461884197,3.73967954,3232.0,3231.4,3.09455]
[1722461884402,3.09428,3231.8,3230.7,2.2899]
[1722461884640,3.73970954,3232.0,3230.7,2.2899]
[1722461884852,3.0941,3232.0,3231.3,3.09467]
[1722461885062,3.73951954,3232.2,3231.5,3.09448]
[1722461885264,3.73951954,3232.2,3231.6,3.09443]
[1722461885265,4.57492457,3232.1,3231.6,3.09443]
[1722461885409,1.36133715,3232.2,3231.6,3.09443]
[1722461885410,0.64560954,3232.2,3231.6,0.06188284]
[1722461885605,0.96935659,3232.4,3231.7,3.09433]
[1722461885606,3.09384,3232.3,3231.7,3.09433]
[1722461886703,3.09362,3232.5,3231.8,3.09418]
[1722461887419,3.09362,3232.5,3231.9,3.1560048]
[1722461887640,3.09362,3232.5,3231.9,3.1559648]
[1722461887841,3.09343,3232.7,3232.0,0.06187475]
[1722461888044,3.09348,3232.6,3232.0,3.15592475]
[1722461888224,3.09348,3232.6,3232.0,6.18804]
[1722461888429,0.68298093,3232.7,3232.1,3.15582363]
[1722461888808,0.68298093,3232.7,3232.2,3.09386]
[1722461888809,3.77638093,3232.7,3232.2,3.09386]
[1722461889077,6.18591,3233.2,3232.3,3.1555617]
[1722461889225,3.4215089,3233.4,3231.6,2.451]
[1722461889226,3.09993926,3233.4,3231.6,2.451]
[1722461889426,3.09364,3232.5,3231.6,2.451]
[1722461889626,3.09993926,3233.4,3232.1,3.09394]
[1722461889627,3.09341,3232.7,3232.1,3.09394]
[1722461889877,3.09341,3232.7,3232.1,3.09388]
[1722461889878,3.712075,3232.7,3232.1,3.09388]
[1722461890086,3.712075,3232.7,3232.2,3.09384]
[1722461890229,3.09304,3233.1,3232.3,3.09373]
[1722461890435,3.09304,3233.1,3232.5,3.09357]
[1722461890828,0.64278324,3233.6,3232.5,0.06186573]
[1722461890829,3.09262,3233.5,3232.5,0.06186573]
[1722461891170,3.09259,3233.6,3232.9,3.09318]
[1722461891327,3.09259,3233.6,3232.5,0.06186573]
[1722461891328,0.618506,3233.5,3233.0,3.09309]
[1722461891849,0.618506,3233.5,3232.9,3.09311]
[1722461892170,3.09246,3233.7,3233.0,3.09304]
[1722461892386,3.09226,3233.9,3233.2,3.09291]
[1722461892526,3.09249,3233.7,3233.1,3.09298]
[1722461892829,3.0,3233.6,3233.1,3.09298]
[1722461894429,3.0,3233.6,3232.9,3.09318]
[1722461894634,3.09275,3233.4,3232.7,3.0933]
[1722461894867,3.09281,3233.3,3232.8,3.09321]
[1722461895033,3.09221,3234.0,3232.9,0.06185557]
[1722461895237,3.09197,3234.2,3233.0,3.09309]
[1722461895476,3.09187,3234.3,3233.6,3.09247]
[1722461895769,3.09198,3234.2,3233.5,0.06184499]
[1722461895959,3.09205,3234.1,3233.5,0.06184499]
[1722461896156,3.09196,3234.2,3233.5,0.06184499]
[1722461896347,3.09186,3234.3,3233.6,3.09244]
[1722461896540,3.09176,3234.4,3233.6,2.2629]
[1722461896736,3.09176,3234.4,3233.7,3.15424284]
[1722461896958,3.09176,3234.4,3233.8,3.09233]
[1722461897484,3.09158,3234.6,3233.9,3.15406077]
[1722461897774,3.09158,3234.6,3233.9,3.77870785]
[1722461897995,3.09158,3234.6,3233.9,3.15406077]
[1722461898199,3.09158,3234.6,3234.0,3.09213]
[1722461898335,3.09141,3234.8,3234.0,3.09213]
[1722461898533,3.09147,3234.7,3234.1,3.09201]
[1722461899150,3.09129,3234.9,3234.2,3.15377506]
[1722461899353,3.09139,3234.8,3234.2,3.15377506]
[1722461899667,3.09148,3234.7,3234.0,3.09213]
[1722461899882,3.09157,3234.6,3234.0,3.09213]
[1722461900332,3.09157,3234.6,3233.8,3.0923]
[1722461900333,3.09149,3234.7,3233.8,3.09233]
[1722461900650,3.09182,3234.4,3233.7,3.09242]
[1722461900853,3.09182,3234.4,3233.7,3.74246655]
[1722461901348,3.09182,3234.4,3233.8,3.09233]
[1722461901530,6.18323,3234.6,3233.8,3.09233]
[1722461901734,5.866485,3235.3,3234.0,3.09213]
[1722461901735,3.09151,3234.7,3234.0,3.09213]
[1722461902036,3.09133,3234.9,3234.1,3.15381562]
[1722461902370,3.09125,3235.0,3234.1,0.06183562]
[1722461902704,3.09125,3235.0,3234.3,3.09179]
[1722461903103,3.09129,3234.9,3234.3,0.06183026]
[1722461903267,3.09112,3235.1,3234.3,0.06183026]
[1722461903457,6.09119,3235.0,3234.4,3.09176]
[1722461904265,3.0,3235.0,3232.9,0.55]
[1722461904470,0.3,3234.9,3233.3,3.64279]
[1722461904667,3.09195,3234.2,3233.4,3.0927]
[1722461905353,3.09158,3234.6,3233.4,3.0927]
[1722461905596,3.09239,3233.8,3233.2,3.09289]
[1722461905814,3.09243,3233.7,3233.0,6.18611]
[1722461906094,3.09243,3233.7,3233.0,3.711631]
[1722461906307,3.09254,3233.6,3232.8,3.09325]
[1722461906452,3.0929,3233.3,3232.6,3.09345]
[1722461906807,3.093,3233.1,3232.4,3.0936]
[1722461907109,3.0929,3233.3,3232.4,3.0936]
[1722461907110,3.09311,3233.0,3232.4,3.09365]
[1722461907483,3.09311,3233.0,3232.1,2.3219]
[1722461907651,3.09311,3233.0,3231.7,3.09427]
[1722461907652,0.309311,3233.0,3231.7,3.09427]
[1722461907853,3.09383,3232.3,3231.5,2.4892]
[1722461908051,3.09388,3232.2,3231.5,5.58365]
[1722461908252,3.09388,3232.2,3231.6,3.09442]
[1722461908501,3.09396,3232.1,3231.3,3.09472]
[1722461908700,5.42714,3232.6,3230.8,2.4892]
[1722461908701,3.09406,3232.0,3230.8,2.4892]
[1722461908867,5.42714,3232.6,3231.4,3.09457]
[1722461908868,2.3336,3232.6,3231.4,3.09457]
[1722461909052,2.3336,3232.6,3230.9,0.558449]
[1722461909053,3.09407,3232.0,3231.3,3.09468]
[1722461909399,3.09415,3231.9,3231.1,3.09491]
[1722461909602,3.09415,3231.9,3231.0,3.09501]
[1722461909603,3.09444,3231.6,3231.0,3.09501]
[1722461909803,3.0,3232.5,3230.9,0.558449]
[1722461909954,0.53336,3232.4,3231.1,3.09488]
[1722461910165,3.09443,3231.7,3231.0,3.09497]
[1722461910906,3.09445,3231.6,3230.8,3.09514]
[1722461911111,3.09444,3231.6,3231.0,3.09501]
[1722461911314,3.09444,3231.6,3230.8,3.09514]
[1722461911525,3.09454,3231.5,3230.9,3.0951]
[1722461911886,3.09464,3231.4,3230.7,3.09528]
[1722461912223,3.09464,3231.4,3230.7,3.714356]
[1722461912510,3.09474,3231.3,3230.8,3.0]